fUST/lending_fUST_20240708
["ID","MTS","AMOUNT","RATE_DAILY","PERIOD"]
[331422565,1720377709308,-300.0,0.000255,2]
[331422566,1720377709328,-321.27174644,0.00025501,2]
[331422567,1720377709348,-6385.24543176,0.00025501,2]
[331422571,1720378146156,-184.914249,0.00021096,2]
[331422572,1720378146179,-160.63587322,0.00024769,2]
[331422573,1720378146206,-24900.0,0.00024769,2]
[331422574,1720378146226,-160.977687,0.00024833,2]
[331422575,1720378146250,-223.13137605,0.00025401,2]
[331422576,1720378146275,-4174.40467449,0.00025501,2]
[331422577,1720378146298,-763.48993106,0.00025501,2]
[331422578,1720378146321,-428.07800494,0.00025501,2]
[331422579,1720378146341,-23674.07716156,0.00025501,2]
[331422580,1720378146363,-151.0,0.00027,2]
[331422581,1720378146384,-478.79391091,0.00027194,2]
[331422582,1720378146405,-500.0,0.00027194,2]
[331422583,1720378146426,-500.0,0.00027194,2]
[331422584,1720378146447,-346.33268621,0.00027194,2]
[331422585,1720378146469,-550.76810705,0.00027194,2]
[331422586,1720378146490,-500.0,0.00027194,2]
[331422587,1720378146510,-500.0,0.00027194,2]
[331422588,1720378146530,-500.0,0.00027194,2]
[331422589,1720378146550,-500.0,0.00027194,2]
[331422590,1720378146569,-500.0,0.00027194,2]
[331422591,1720378146590,-184.914249,0.00027195,2]
[331422592,1720378146611,-500.0,0.00027397,2]
[331422593,1720378146633,-500.0,0.00027397,2]
[331422594,1720378146653,-500.0,0.00027397,2]
[331422595,1720378146673,-500.0,0.00027397,2]
[331422596,1720378146696,-367.99986115,0.00027397,2]
[331422597,1720378146716,-500.0,0.00027397,2]
[331422598,1720378146737,-500.0,0.00027397,2]
[331422599,1720378146766,-500.0,0.00027397,2]
[331422600,1720378146789,-187.66006725,0.000296,2]
[331422601,1720378146812,-5290.32470551,0.0002965,2]
[331422602,1720378146838,-1102.99874107,0.000299,2]
[331422603,1720378146863,-184.914249,0.00033295,2]
[331422604,1720378146883,-571.76487024,0.00034562,4]
[331422605,1720378146902,-256.67016396,0.0003463,2]
[331422606,1720378146924,-184.914249,0.00039394,2]
[331422607,1720378146949,-210.0,0.0004,120]
[331422608,1720378146989,-2280.0,0.00041,7]
[331422609,1720378148397,268.92743618,0.0003455,4]
[331422610,1720378161109,-160.977687,0.00044441,2]
[331422611,1720378161131,-1405.0,0.00044827,2]
[331422612,1720378161152,-458.06028568,0.00045,120]
[331422613,1720378182711,373.91027358,0.0003091,4]
[331422614,1720378187953,575.15278975,0.0003091,4]
[331422615,1720378190254,1025.80221064,0.0003091,4]
[331422616,1720378199452,256.67016396,0.0003091,2]
[331422617,1720378209324,2348.57674716,0.00036496,2]
[331422690,1720378238608,-151.0,0.00036488,7]
[331422693,1720378238624,-2837.65780258,0.00036496,2]
[331422695,1720378238634,-5186.23454974,0.00036732,2]
[331422697,1720378238644,-5186.23454974,0.00037031,2]
[331422699,1720378238654,-835.15099301,0.00037466,4]
[331422701,1720378238663,-5608.60512887,0.00037466,4]
[331422703,1720378238673,-575.15278975,0.00037466,4]
[331422705,1720378238682,-256.67016396,0.00037466,2]
[331422707,1720378238692,-5186.23454974,0.00037516,2]
[331422709,1720378238701,-5186.23454974,0.00037687,2]
[331422712,1720378238711,-4265.01645448,0.00037969,2]
[331422715,1720378238727,-921.21809526,0.00037969,2]
[331422717,1720378238737,-376.55952824,0.00038156,2]
[331422725,1720378238815,-4809.6750215,0.00038156,2]
[331422727,1720378238825,-223.13137604,0.00038326,2]
[331422730,1720378238838,-5186.23454974,0.00038426,2]
[331422732,1720378238850,-5186.23454974,0.00038789,2]
[331422733,1720378238860,-429.77776235,0.00038915,7]
[331422736,1720378238870,-338.97423412,0.00038915,15]
[331422738,1720378238880,-5186.23454974,0.00038916,2]
[331422740,1720378238890,-5186.23454974,0.00039192,2]
[331422742,1720378238900,-5186.23454974,0.00039543,2]
[331422744,1720378238910,-5186.23454974,0.00039763,2]
[331422746,1720378238920,-5081.03430755,0.00040181,2]
[331422859,1720378243914,-5608.60512887,0.00037466,4]
[331422861,1720378243923,-105.20024219,0.00040181,2]
[331422862,1720378243932,-3838.45631724,0.00040493,2]
[331422877,1720379303053,-227.656827,0.00021096,2]
[331422878,1720379303086,-300.0,0.000255,2]
[331422879,1720379303117,-218.0,0.000255,2]
[331422880,1720379303151,-167.36452574,0.00025501,2]
[331422881,1720379303190,-913.02135274,0.00025501,2]
[331422882,1720379303230,-846.00976173,0.00025501,2]
[331422883,1720379327974,-966.46240209,0.00025501,2]
[331422884,1720379328025,-422.17897296,0.00025501,2]
[331422885,1720379348199,-287.0,0.000255,2]
[331422886,1720379348221,-32566.69494921,0.00025501,2]
[331422887,1720379348243,-166.666666,0.00025579,2]
[331422888,1720379348266,-166.666666,0.00026277,2]
[331422889,1720379348300,-166.666666,0.00026974,2]
[331422890,1720379348330,-500.0,0.00027169,2]
[331422891,1720379348357,-198.90670595,0.00027169,2]
[331422892,1720379348381,-24900.0,0.0002717,2]
[331422893,1720379348407,-227.656827,0.00027195,2]
[331422894,1720379348430,-209.0910573,0.00027315,2]
[331422895,1720379348457,-500.0,0.00027397,2]
[331422896,1720379348482,-383.24067985,0.00027397,2]
[331422897,1720379348506,-500.0,0.00027397,2]
[331422898,1720379348530,-166.666666,0.00027671,2]
[331422899,1720379348550,-166.666666,0.00028369,2]
[331422900,1720379348573,-166.666666,0.00029066,2]
[331422901,1720379348596,-312.1749036,0.00029647,2]
[331422902,1720379348618,-13058.46629814,0.00029879,2]
[331422903,1720379354109,-1440.0,0.00029879,2]
[331422913,1720379432243,-428.07800494,0.00025501,2]
[331422916,1720379432252,-4174.40467449,0.00025501,2]
[331422919,1720379432262,-213.82444394,0.00029879,2]
[331422923,1720379432275,-549.38371013,0.00029879,2]
[331422925,1720379432284,-225.53942994,0.00029879,2]
[331422928,1720379432293,-125.88512731,0.0002994,2]
[331422955,1720379437914,-189.04078712,0.00029879,2]
[331422956,1720379437924,-174.11487269,0.0002994,2]
[331422957,1720379437934,-253.67004243,0.0003,2]
[331422958,1720379437944,-113.44615367,0.00033295,2]
[331422959,1720379437958,-114.21067333,0.00033295,2]
[331422960,1720379437968,-2894.96914146,0.00036216,2]
[331422961,1720379437979,-371.52482098,0.00037999,4]
[331422962,1720379437989,-197.13244658,0.00038264,2]
[331422963,1720379437999,-329.15510174,0.00038999,4]
[331422964,1720379438008,-293.1691109,0.00038999,4]
[331422965,1720379438018,-247.46843612,0.00039393,4]
[331422966,1720379438029,-227.656827,0.00039394,2]
[331422967,1720379438038,-151.0,0.00039654,14]
[331422968,1720379438048,-151.0,0.00040249,14]
[331422969,1720379438058,-151.0,0.00040249,14]
[331422970,1720379438067,-151.0,0.00040249,14]
[331422972,1720379438192,-151.0,0.00040493,14]
[331422973,1720379438202,-151.0,0.00040493,14]
[331422974,1720379438212,-151.0,0.00040493,14]
[331422975,1720379438222,-152.201305,0.00040493,14]
[331422976,1720379438234,-151.0,0.00040493,14]
[331422977,1720379438243,-151.0,0.00040493,14]
[331422978,1720379438253,-151.0,0.00040515,14]
[331422979,1720379438264,-151.0,0.00040615,14]
[331422980,1720379438274,-151.0,0.00041331,14]
[331422981,1720379438284,-151.0,0.00041897,14]
[331422982,1720379438294,-151.0,0.00042147,14]
[331422983,1720379438304,-151.0,0.0004243,14]
[331422984,1720379438313,-151.0,0.0004279,14]
[331422985,1720379438323,-151.0,0.0004279,14]
[331422986,1720379438333,-310.0,0.0004279,30]
[331422987,1720379438343,-310.0,0.0004279,30]
[331422988,1720379438352,-310.0,0.0004279,30]
[331422989,1720379438362,-452.655239,0.0004279,30]
[331422990,1720379438371,-151.0,0.000428,14]
[331422991,1720379438382,-1095.27055344,0.00042888,4]
[331422992,1720379438392,-10791.593016,0.00042967,5]
[331422993,1720379438401,-150.3838595,0.0004335,28]
[331422994,1720379438411,-188.301598,0.0004345,14]
[331422995,1720379438422,-156.82584226,0.00043541,30]
[331422996,1720379438431,-293.33733024,0.00043615,4]
[331422997,1720379438441,-156.82584226,0.00043738,30]
[331422998,1720379438452,-5290.32470551,0.00044549,2]
[331422999,1720379438462,-151.0,0.00044578,14]
[331423000,1720379438472,-151.0,0.00044578,14]
[331423001,1720379438482,-150.38385947,0.00044736,28]
[331423002,1720379438492,-370.51704497,0.00045,120]
[331423003,1720379438503,-1405.0,0.00045433,2]
[331423004,1720379438512,-227.656827,0.00045494,2]
[331423005,1720379438523,-150.38385947,0.00046121,28]
[331423006,1720379438533,-150.0,0.00046319,2]
[331423007,1720379438543,-153.0,0.00047123,120]
[331423008,1720379438553,-150.38385947,0.00047507,28]
[331423009,1720379438563,-576.59128238,0.00048,2]
[331423010,1720379438572,-151.0,0.00048304,14]
[331423011,1720379438582,-278.827756,0.00048304,14]
[331423012,1720379438592,-1405.0,0.00048433,2]
[331423013,1720379438601,-293.4755649,0.00048438,2]
[331423014,1720379438611,-150.38385947,0.00048893,28]
[331423015,1720379438621,-1214.6154772,0.000489,2]
[331423016,1720379438631,-153.69340887,0.00048999,7]
[331423017,1720379438655,-10000.0,0.00049,49]
[331423018,1720379438666,-151.0,0.00049,14]
[331423019,1720379438676,-151.0,0.00049,14]
[331423020,1720379438686,-1000.0,0.00049,49]
[331423021,1720379438696,-151.0,0.00049072,14]
[331423022,1720379438706,-4771.70091255,0.00049082,20]
[331423043,1720379442090,-1489.24109091,0.00035615,4]
[331423044,1720379442101,-1592.66304275,0.00049082,20]
[331423045,1720379442110,-500.0,0.00049315,120]
[331423046,1720379442119,-500.0,0.00049315,120]
[331423047,1720379442129,-1381.81,0.00049315,120]
[331423048,1720379442138,-500.0,0.00049315,120]
[331423049,1720379442147,-500.0,0.00049315,120]
[331423050,1720379442157,-500.0,0.00049315,120]
[331423051,1720379442166,-500.0,0.00049315,120]
[331423052,1720379442176,-151.0,0.00049315,14]
[331423053,1720379442185,-1214.61547719,0.000494,2]
[331423054,1720379442199,-10791.593016,0.00049577,6]
[331423055,1720379442208,-241.2253,0.00049587,2]
[331423056,1720379442218,-500.0,0.00049589,120]
[331423057,1720379442227,-500.0,0.00049589,120]
[331423058,1720379442238,-1381.81,0.00049589,120]
[331423059,1720379442247,-500.0,0.00049589,120]
[331423060,1720379442257,-500.0,0.00049589,120]
[331423061,1720379442269,-500.0,0.00049589,120]
[331423062,1720379442283,-500.0,0.00049589,120]
[331423063,1720379442292,-2000.0,0.00049763,120]
[331423064,1720379442302,-500.0,0.00049863,120]
[331423065,1720379442311,-500.0,0.00049863,120]
[331423066,1720379442321,-1381.81,0.00049863,120]
[331423067,1720379442330,-500.0,0.00049863,120]
[331423068,1720379442340,-500.0,0.00049863,120]
[331423070,1720379442349,-500.0,0.00049863,120]
[331423072,1720379442359,-151.0,0.00049863,120]
[331423074,1720379442370,-999.0,0.00049899,120]
[331423076,1720379442380,-2706.92986124,0.000499,120]
[331423078,1720379442390,-1214.61547719,0.000499,2]
[331423079,1720379442399,-10000.0,0.0005,50]
[331423080,1720379442409,-154.66746495,0.0005,30]
[331423081,1720379442418,-1000.0,0.0005,50]
[331423082,1720379442428,-2511.6,0.0005,14]
[331423083,1720379442437,-200.0,0.0005,120]
[331423084,1720379442447,-151.0,0.0005,120]
[331423086,1720379442457,-1030.08,0.0005008,3]
[331423088,1720379442466,-190.16,0.0005009,62]
[331423089,1720379442475,-3000.0,0.000501,120]
[331423091,1720379442485,-415.11262256,0.00050136,120]
[331423092,1720379442494,-500.0,0.00050136,120]
[331423093,1720379442503,-1381.81,0.00050136,120]
[331423094,1720379442513,-500.0,0.00050136,120]
[331423095,1720379442522,-500.0,0.00050136,120]
[331423096,1720379442532,-392.96008953,0.00050136,120]
[331423097,1720379442542,-150.38385947,0.00050279,28]
[331423098,1720379442551,-1214.61547719,0.000504,2]
[331423099,1720379442560,-500.0,0.0005041,120]
[331423100,1720379442569,-1381.81,0.0005041,120]
[331423101,1720379442579,-500.0,0.0005041,120]
[331423102,1720379442590,-500.0,0.0005041,120]
[331423103,1720379442599,-999.0,0.00050584,120]
[331423104,1720379442609,-500.0,0.00050684,120]
[331423105,1720379442618,-1381.81,0.00050684,120]
[331423106,1720379442627,-258.77786874,0.00050684,120]
[331423107,1720379442636,-500.0,0.00050684,120]
[331423108,1720379442645,-1214.61547719,0.000509,2]
[331423109,1720379442654,-10011.52,0.000509,30]
[331423110,1720379442664,-10791.593016,0.00050948,6]
[331423111,1720379442673,-347.93250638,0.00050958,120]
[331423112,1720379442682,-1381.81,0.00050958,120]
[331423113,1720379442692,-500.0,0.00050958,120]
[331423114,1720379442701,-321.22139472,0.00050989,120]
[331423115,1720379442710,-500.0,0.00050989,31]
[331423116,1720379442720,-500.0,0.00050989,120]
[331423117,1720379442729,-500.0,0.00050989,120]
[331423118,1720379442739,-500.0,0.00050989,120]
[331423119,1720379442748,-498.93620434,0.00050989,120]
[331423120,1720379442757,-545.79930224,0.00050989,31]
[331423121,1720379442766,-438.94058433,0.00050989,120]
[331423122,1720379442775,-500.0,0.00050989,120]
[331423123,1720379442785,-500.0,0.00050989,120]
[331423124,1720379442795,-500.0,0.00050989,120]
[331423125,1720379442804,-500.0,0.00050989,120]
[331423126,1720379442813,-500.0,0.00050989,120]
[331423127,1720379442822,-450.0,0.00050989,120]
[331423128,1720379442832,-609.95993622,0.00050989,120]
[331423129,1720379442841,-378.64400396,0.00050989,120]
[331423130,1720379442850,-500.0,0.00050989,120]
[331423131,1720379442859,-500.0,0.00050989,120]
[331423132,1720379442868,-405.15005313,0.00050989,120]
[331423133,1720379442878,-500.0,0.00050989,120]
[331423134,1720379442887,-500.0,0.00050989,120]
[331423135,1720379442897,-423.23985117,0.00050989,120]
[331423136,1720379442906,-500.0,0.00050989,120]
[331423137,1720379442915,-500.0,0.00050989,120]
[331423138,1720379442924,-500.0,0.00050989,120]
[331423139,1720379442933,-500.0,0.00050989,120]
[331423140,1720379442943,-160.6358732,0.0005099,61]
[331423141,1720379442952,-172665.488255,0.0005099,6]
[331423142,1720379442961,-10000.0,0.00051,51]
[331423143,1720379442970,-7577.75253577,0.00051,61]
[331423144,1720379442979,-1000.0,0.00051,51]
[331423145,1720379442988,-34879.72652924,0.00051,15]
[331423189,1720380567147,-197.37636,0.00021096,2]
[331423190,1720380567168,-300.0,0.00024381,2]
[331423191,1720380567188,-300.0,0.00024381,2]
[331423192,1720380567209,-24900.0,0.00024382,2]
[331423193,1720380567229,-166.666666,0.0002465,2]
[331423194,1720380567250,-166.666666,0.00025322,2]
[331423195,1720380567271,-24643.47123108,0.00025501,2]
[331423196,1720380572327,-16839.40531121,0.00025501,2]
[331423226,1720380632779,-166.666666,0.00025994,2]
[331423228,1720380632789,-166.666666,0.00026666,2]
[331423229,1720380632798,-250.0,0.0002673,2]
[331423230,1720380632808,-160.977687,0.00026874,2]
[331423231,1720380632817,-197.37636,0.00027195,2]
[331423232,1720380632826,-166.666666,0.00027339,2]
[331423233,1720380632835,-550.0,0.00027397,2]
[331423234,1720380632845,-1104.00944752,0.0002772,2]
[331423235,1720380632854,-166.666666,0.00028011,2]
[331423236,1720380632863,-644.20047238,0.00029106,2]
[331423237,1720380632872,-150.0,0.000304,2]
[331423238,1720380632882,-621.21002362,0.00030562,2]
[331423239,1720380632892,-250.0,0.00030948,2]
[331423240,1720380632901,-150.0,0.0003145,2]
[331423241,1720380632911,-350.0,0.00031496,2]
[331423242,1720380632920,-174.05848799,0.00031969,2]
[331423243,1720380632930,-400.0,0.00031997,2]
[331423244,1720380632939,-201.35292715,0.00031998,2]
[331423245,1720380632951,-48.64707285,0.00031998,2]
[331423246,1720380632961,-450.0,0.00032044,2]
[331423247,1720380632971,-400.0,0.00032089,2]
[331423248,1720380632980,-620.06050118,0.0003209,2]
[331423249,1720380632989,-350.0,0.00032546,2]
[331423250,1720380632999,-550.0,0.00032592,2]
[331423251,1720380633008,-250.0,0.00033094,2]
[331423252,1720380633017,-73.23727091,0.00033295,2]
[331423316,1720380640268,-428.07800494,0.00025501,2]
[331423317,1720380640278,-124.13908909,0.00033295,2]
[331423319,1720380640288,-620.00302506,0.00033694,2]
[331423320,1720380640297,-620.00015125,0.00035379,2]
[331423321,1720380640307,-1000.0,0.000364,21]
[331423322,1720380640316,-523.1,0.000365,62]
[331423323,1720380640326,-457.74438161,0.00038229,4]
[331423324,1720380640336,-218.81045653,0.00039167,2]
[331423325,1720380640346,-293.1691109,0.00039393,4]
[331423326,1720380640356,-197.37636,0.00039394,2]
[331423327,1720380640366,-1489.24109091,0.00039999,4]
[331423328,1720380640377,-1873.81024533,0.00045,120]
[331423329,1720380640388,-197.37636,0.00045494,2]
[331423330,1720380640399,-12449.7530803,0.00045901,5]
[331423331,1720380640409,-5230.65198105,0.00045975,120]
[331423332,1720380640419,-5230.65198105,0.00046292,120]
[331423333,1720380640428,-5230.65198105,0.00046391,120]
[331423334,1720380640450,-5230.65198105,0.00046703,120]
[331423335,1720380640460,-1255.48104468,0.0004688,2]
[331423336,1720380640470,-5230.65198105,0.00046983,120]
[331423337,1720380640481,-5230.65198105,0.00047185,120]
[331423338,1720380640491,-1405.0,0.00047535,2]
[331423339,1720380640501,-5230.65198105,0.00047591,120]
[331423340,1720380640511,-5230.65198105,0.00047678,120]
[331423341,1720380640522,-1255.48104464,0.00047885,2]
[331423342,1720380640532,-5230.65198105,0.00048024,120]
[331423343,1720380640543,-12449.7530803,0.00048107,6]
[331423344,1720380640557,-5230.65198105,0.00048225,120]
[331423345,1720380640567,-1309.34,0.00048514,3]
[331423346,1720380640578,-5230.65198105,0.00048524,120]
[331423347,1720380640590,-151.0,0.00048887,14]
[331423348,1720380640600,-1255.48104464,0.0004889,2]
[331423349,1720380640612,-5230.65198105,0.00049001,120]
[331423350,1720380640622,-5230.65198105,0.00049119,120]
[331423351,1720380640634,-415.11262256,0.00049315,120]
[331423352,1720380640644,-500.0,0.00049315,120]
[331423353,1720380640654,-500.0,0.00049315,120]
[331423354,1720380640665,-500.0,0.00049315,120]
[331423355,1720380640675,-500.0,0.00049315,120]
[331423356,1720380640686,-500.0,0.00049315,120]
[331423358,1720380640696,-500.0,0.00049315,120]
[331423359,1720380640706,-500.0,0.00049315,120]
[331423360,1720380640717,-500.0,0.00049315,120]
[331423361,1720380640728,-500.0,0.00049315,120]
[331423362,1720380640738,-999.0,0.00049402,120]
[331423363,1720380640748,-5230.65198105,0.00049582,120]
[331423364,1720380640761,-500.0,0.00049589,120]
[331423365,1720380640771,-500.0,0.00049589,120]
[331423366,1720380640784,-500.0,0.00049589,120]
[331423367,1720380640796,-500.0,0.00049589,120]
[331423368,1720380640807,-500.0,0.00049589,120]
[331423369,1720380640818,-500.0,0.00049589,120]
[331423370,1720380640828,-500.0,0.00049589,120]
[331423371,1720380640839,-500.0,0.00049589,120]
[331423372,1720380640848,-500.0,0.00049589,120]
[331423373,1720380640858,-5230.65198105,0.00049769,120]
[331423374,1720380640868,-12449.7530803,0.00049853,6]
[331423375,1720380640878,-500.0,0.00049863,120]
[331423376,1720380640888,-500.0,0.00049863,120]
[331423377,1720380640898,-500.0,0.00049863,120]
[331423378,1720380640908,-500.0,0.00049863,120]
[331423379,1720380640918,-500.0,0.00049863,120]
[331423380,1720380640929,-500.0,0.00049863,120]
[331423381,1720380640939,-500.0,0.00049863,120]
[331423382,1720380640948,-500.0,0.00049863,120]
[331423383,1720380640959,-1255.48104464,0.00049895,2]
[331423384,1720380640969,-151.0,0.000499,120]
[331423385,1720380640980,-5230.65198105,0.00049924,120]
[331423386,1720380640990,-10000.0,0.0005,50]
[331423387,1720380641000,-154.62117811,0.0005,30]
[331423388,1720380641012,-4075.64591385,0.0005,7]
[331423389,1720380641022,-2932.18573331,0.0005,30]
[331423390,1720380641031,-999.0,0.00050087,120]
[331423391,1720380641042,-3000.0,0.000501,120]
[331423392,1720380641052,-151.0,0.000501,120]
[331423393,1720380641066,-12449.7530803,0.00050124,6]
[331423394,1720380641076,-300.0,0.00050136,120]
[331423395,1720380641086,-392.96008953,0.00050136,120]
[331423396,1720380641096,-493.27632386,0.00050136,120]
[331423397,1720380641107,-500.0,0.00050136,120]
[331423398,1720380641116,-500.0,0.00050136,120]
[331423399,1720380641126,-500.0,0.00050136,120]
[331423400,1720380641136,-500.0,0.00050136,120]
[331423401,1720380641146,-5230.65198105,0.00050381,120]
[331423402,1720380641156,-500.0,0.0005041,120]
[331423403,1720380641165,-500.0,0.0005041,120]
[331423404,1720380641174,-500.0,0.0005041,120]
[331423405,1720380641183,-500.0,0.0005041,120]
[331423406,1720380641194,-1405.0,0.00050535,120]
[331423407,1720380641203,-190.16,0.00050636,62]
[331423408,1720380641213,-241.2253,0.00050645,2]
[331423409,1720380641226,-5230.65198105,0.00050665,120]
[331423410,1720380641236,-500.0,0.00050684,120]
[331423411,1720380641246,-258.77786874,0.00050684,120]
[331423412,1720380641255,-500.0,0.00050684,120]
[331423413,1720380641268,-500.0,0.00050684,120]
[331423414,1720380641278,-999.0,0.00050772,120]
[331423415,1720380641290,-1255.48104464,0.000509,2]
[331423416,1720380641300,-10011.52,0.000509,30]
[331423417,1720380641310,-5230.65198105,0.00050909,120]
[331423418,1720380641319,-500.0,0.00050958,120]
[331423419,1720380641329,-347.93250638,0.00050958,120]
[331423420,1720380641338,-500.0,0.00050958,120]
[331423421,1720380641348,-484.19191083,0.00050989,120]
[331423422,1720380641358,-500.0,0.00050989,31]
[331423423,1720380641367,-500.0,0.00050989,120]
[331423424,1720380641377,-500.0,0.00050989,120]
[331423425,1720380641387,-500.0,0.00050989,120]
[331423426,1720380641396,-500.0,0.00050989,120]
[331423427,1720380641405,-500.0,0.00050989,120]
[331423428,1720380641415,-500.0,0.00050989,120]
[331423429,1720380641424,-500.0,0.00050989,31]
[331423430,1720380641434,-500.0,0.00050989,120]
[331423431,1720380641443,-252.30693627,0.00050989,120]
[331423432,1720380641452,-378.64400396,0.00050989,120]
[331423433,1720380641462,-500.0,0.00050989,120]
[331423434,1720380641472,-500.0,0.00050989,120]
[331423435,1720380641482,-576.09283808,0.00050989,31]
[331423436,1720380641492,-500.0,0.00050989,120]
[331423437,1720380641501,-307.32473658,0.00050989,120]
[331423438,1720380641511,-500.0,0.00050989,120]
[331423439,1720380641521,-500.0,0.00050989,120]
[331423440,1720380641531,-600.26595795,0.00050989,120]
[331423441,1720380641540,-500.0,0.00050989,120]
[331423442,1720380641552,-500.0,0.00050989,120]
[331423443,1720380641563,-500.0,0.00050989,120]
[331423444,1720380641573,-500.0,0.00050989,120]
[331423445,1720380641582,-617.38201434,0.00050989,120]
[331423446,1720380641591,-500.0,0.00050989,120]
[331423447,1720380641602,-500.0,0.00050989,120]
[331423448,1720380641611,-500.0,0.00050989,120]
[331423449,1720380641621,-500.0,0.00050989,120]
[331423450,1720380641632,-500.0,0.00050989,120]
[331423451,1720380641641,-500.0,0.00050989,120]
[331423452,1720380641650,-500.0,0.00050989,120]
[331423453,1720380641660,-500.0,0.00050989,120]
[331423454,1720380641669,-500.0,0.00050989,120]
[331423455,1720380641678,-500.0,0.00050989,120]
[331423456,1720380641687,-500.0,0.00050989,120]
[331423457,1720380641697,-87013.44677625,0.0005099,6]
[331423519,1720381545198,-173.813278,0.00021096,2]
[331423520,1720381545219,-780.25918392,0.00026,2]
[331423525,1720381748196,-166.666666,0.00025582,2]
[331423526,1720381748218,-4123.58622109,0.00026,2]
[331423527,1720381748238,-562.81480951,0.00026,2]
[331423528,1720381748258,-189.04078712,0.00026,2]
[331423529,1720381748279,-225.53942994,0.00026,2]
[331423530,1720381748299,-428.07800494,0.00026,2]
[331423531,1720381748320,-1967.17310316,0.00026,2]
[331423532,1720381763096,-174.41530961,0.00026,2]
[331423533,1720381763118,-24900.0,0.00026024,2]
[331423534,1720381763138,-173.813278,0.00027195,2]
[331423535,1720381763157,-268.92743618,0.00031251,4]
[331423536,1720381763176,-571.76487024,0.00031251,4]
[331423537,1720381763195,-256.67016396,0.00031251,2]
[331423538,1720381763215,-173.813278,0.00033295,2]
[331423539,1720381763238,-10617.19710884,0.0003467,4]
[331423540,1720381763262,-27376.00379517,0.000349,2]
[331423541,1720381763283,-10356.06921638,0.00035,2]
[331423542,1720381763301,-150.0,0.00035906,2]
[331423543,1720381763320,-257.69157416,0.0003624,2]
[331423544,1720381763341,-1091.12,0.00036342,3]
[331423545,1720381763361,-6341.71003049,0.00036342,4]
[331423546,1720381763380,-25226.43712552,0.00036352,2]
[331423554,1720381832159,-1025.80221064,0.00031515,4]
[331423556,1720381832170,-575.15278975,0.00031515,4]
[331423558,1720381832179,-13432.89577567,0.00031515,2]
[331423560,1720381832191,-6688.48466544,0.00031515,2]
[331423562,1720381832203,-2919.69807193,0.00031515,2]
[331423565,1720381832214,-604.99998376,0.00031515,2]
[331423730,1720381840428,-256.67016396,0.00031515,2]
[331423731,1720381840438,-373.91027358,0.00031515,4]
[331423733,1720381840447,-1393.45753514,0.00036352,2]
[331423796,1720381846479,-166.232711,0.00021096,2]
[331423797,1720381846489,-428.07800494,0.00026,2]
[331423798,1720381846502,-166.232711,0.00027195,2]
[331423799,1720381846511,-166.232711,0.00033295,2]
[331423801,1720381846520,-1050.62673484,0.00036352,2]
[331423866,1720382751147,-160.977687,0.00032389,2]
[331423867,1720382751170,-1916.92078099,0.00035556,2]
[331423875,1720382977799,167.369796,0.00021096,2]
[331423876,1720382978014,167.369796,0.00027195,2]
[331423911,1720383036553,174.41530961,0.00027195,2]
[331423971,1720383043831,-160.97769,0.00032204,2]
[331423972,1720383043841,-24900.0,0.00032876,2]
[331423973,1720383043850,-167.369796,0.00033295,2]
[331423974,1720383043860,-302.20761098,0.00035556,4]
[331423975,1720383043868,-160.977687,0.00035688,2]
[331423976,1720383043879,-5290.32470551,0.00036028,2]
[331423977,1720383043888,-186.77567692,0.00036252,2]
[331423978,1720383043898,-160.6358732,0.00036352,2]
[331423979,1720383043908,-6992.28247469,0.00036352,2]
[331424110,1720384033133,-175.858486,0.00021096,2]
[331424111,1720384033153,-24.07766969,0.00025501,2]